Cogmind - Beta 17 @@@ ROGUE MODE // 2026.07.13 @ 14:45:35 Player: pinbox Result: Destroyed by S-43 Plague with Heavy Machine Gun Performance ------------- Evolutions (7) 3500 Regions Visited (11) 2200 Robots Destroyed (85) 425 Value Destroyed (4146) 4146 Prototype IDs (26) 520 Alien Tech Used (2) 400 Bonus (1089) 1089 TOTAL SCORE: 12280 Bonus ------- Registered with UFD 300 Met Optimus in HQ 500 Met Zhirov 300 Friendly Fire -11 Cogmind --------- Core Integrity 0/1300 Matter 170/300 Energy 30/100 System Corruption 25% Temperature Cool (0) Movement Core (50) Location -3/Research Parts ------- > --- POWER (2) -------- (None) > --- PROPULSION (6) --- (None) > --- UTILITY (9) ------ Advanced Signal Interpreter Improved Targeting Computer Advanced Melee Analysis Suite Advanced Target Analyzer > --- WEAPON (4) ------- (None) > --- INVENTORY (5) ---- Flexi-carbon Leg Q-thruster Q-thruster Q-thruster Enhanced Force Lance Peak State ------------ > --- POWER ------------ Light Antimatter Reactor Particle Reactor > --- PROPULSION ------- Myomer Leg Myomer Leg Biometal Leg Biometal Leg Biometal Leg Improved Thunder Leg > --- UTILITY ---------- High-capacity Storage Unit Advanced Sensor Array Advanced Signal Interpreter Improved Targeting Computer Advanced Target Analyzer Advanced Target Analyzer Improved Armor Integrity Analyzer Advanced Transmission Jammer Improved Phase Shifter > --- WEAPON ----------- KE Penetrator Railgun Railgun Mass Driver > --- INVENTORY -------- Flexi-carbon Leg Flexi-carbon Leg Biometal Leg Field Propulsion Drive Impulse Thruster Q-thruster Q-thruster Q-thruster Q-thruster Advanced Heat Sink Advanced ECM Suite Heavy Armor Plating Coil Gun Heavy Shock Bomb Launcher Heavy Shock Bomb Launcher Enhanced Force Lance [Rating: 145] Favorites ----------- Power Light Fission Core Engine Ion Engine Power Core Light Fission Core Reactor Light Antimatter Reactor Propulsion Flexi-carbon Leg Treads Advanced Treads Leg Flexi-carbon Leg Wheel Subdweller Monowheel Flight Unit Field Propulsion Drive Utility High-capacity Storage Unit Device Terrain Scanner Storage High-capacity Storage Unit Processor Improved Targeting Computer Hackware Advanced System Shield Protection Experimental Propulsion Shielding Weapon Gauss Rifle Energy Gun Heavy Laser Energy Cannon Heavy Plasma Cannon Ballistic Gun Gauss Rifle Ballistic Cannon Mass Driver Launcher Heavy Shock Bomb Launcher Special Weapon Enhanced Flamer Piercing Weapon Enhanced Force Lance Build | -11 -10 -10 -8 -6 -5 -4 -4 -4 -4 -3 -3 ------- Run | Yrd Mat Sub Scr Fac Fac Fac Upp Upp Zhi Pro Res Slots Evolved 14 | . . . . 8 2 2 . . . . 2 Power 1 | . . . . . 1 . . . . . . Propulsion 4 | . . . . 1 1 1 . . . . 1 Utility 7 | . . . . 6 . . . . . . 1 Weapon 2 | . . . . 1 . 1 . . . . . Parts Attached 130 | 7 6 4 8 22 21 4 5 8 . 8 37 Power 19 | 1 1 1 1 2 4 . 2 1 . 1 5 Engine 5 | 1 1 1 . 1 1 . . . . . . Core 9 | . . . 1 1 3 . 2 1 . 1 . Reactor 5 | . . . . . . . . . . . 5 Propulsion 36 | 2 2 1 3 2 9 1 . 2 . 4 10 Treads 6 | 2 . . 2 2 . . . . . . . Leg 25 | . . . . . 9 1 . 2 . 4 9 Wheel 4 | . 2 1 1 . . . . . . . . Hover . | . . . . . . . . . . . . Flight 1 | . . . . . . . . . . . 1 Utility 43 | 2 2 1 . 14 2 2 2 3 . 1 14 Device 22 | 1 1 1 . 7 2 1 2 3 . . 4 Storage 2 | 1 1 . . . . . . . . . . Processor 13 | . . . . 6 . 1 . . . . 6 Hackware 3 | . . . . . . . . . . . 3 Protection 3 | . . . . 1 . . . . . 1 1 Artifact . | . . . . . . . . . . . . Weapon 32 | 2 1 1 4 4 6 1 1 2 . 2 8 Energy Gun 7 | 1 . . . 3 2 . . . . . 1 Energy Cannon 2 | . . . . 1 1 . . . . . . Ballistic Gun 16 | 1 1 . 2 . 3 1 1 1 . 1 5 Ballistic Cannon 2 | . . . 1 . . . . . . 1 . Launcher 3 | . . 1 . . . . . 1 . . 1 Special Weapon 1 | . . . 1 . . . . . . . . Impact Weapon . | . . . . . . . . . . . . Slashing Weapon . | . . . . . . . . . . . . Piercing Weapon 1 | . . . . . . . . . . . 1 Special Melee Weapon . | . . . . . . . . . . . . Unidentified Prototypes 6 | . . . . 1 . 1 . . 1 2 1 Corrupted Parts 4 | . . . . . . . . 1 . 2 1 System Corruption 18 | . . . . . . . . 5 . 10 3 Parts Lost 69 | . 3 4 . 7 8 . 3 5 . 11 28 Power 13 | . . 1 . . 2 . 2 1 . 1 6 Propulsion 20 | . 2 2 . 1 1 . . 3 . 3 8 Utility 18 | . 1 1 . 3 3 . . 1 . 2 7 Weapon 18 | . . . . 3 2 . 1 . . 5 7 Highest Loss Streak 17 | . 1 2 . 3 3 . 2 5 . 8 17 To Critical Strikes . | . . . . . . . . . . . . Average Backups 12 | . 2 3 6 11 16 18 19 19 19 18 17 Power 1 | . 1 . . 3 2 3 2 . 1 1 1 Propulsion 4 | . . . 1 5 6 5 6 6 6 5 8 Utility 2 | . . . 2 1 3 2 3 4 5 4 4 Weapon 3 | . . 2 2 1 4 7 6 7 7 6 3 Tool/Special . | . . . . . . . . . . . . Unused Backups 21 | . . . . 1 2 . 1 1 1 . 15 Power 2 | . . . . . . . . . . . 2 Propulsion 9 | . . . . . 1 . . . . . 8 Utility 5 | . . . . . 1 . 1 . 1 . 2 Weapon 5 | . . . . 1 . . . 1 . . 3 Tool/Special . | . . . . . . . . . . . . Average Slot Usage (%) 94 | . 89 77 93 91 97 99 99 98 100 95 96 Engine 4 | . 14 12 8 . . . . . . . . Core 6 | . . . 5 5 9 10 9 9 10 10 5 Treads 6 | . 17 9 10 19 2 . . . . . . Leg 13 | . . . . . 19 26 26 25 26 25 26 Wheel 5 | . 8 8 17 . . . . . . . . Device 12 | . 5 8 8 16 18 14 15 17 21 18 10 Storage 8 | . 14 14 14 6 5 5 5 5 5 5 3 Processor 12 | . . . . 20 20 20 21 17 15 15 23 Energy Gun 2 | . 10 . . 6 6 . . . . . . Ballistic Gun 17 | . 17 24 26 6 7 20 21 20 21 17 8 Ballistic Cannon 1 | . . . 1 3 . . . . . . 3 Peak Build Rating 145 | 7 7 9 21 64 82 89 91 96 94 94 145 Average Rating 58 | 5 6 5 13 51 71 84 86 88 92 90 123 On Entrance 52 | . 7 7 9 20 59 74 85 87 92 94 94 Avg Prop Armor Cover (%) 11 | . 11 11 . . . . . . . . . Naked Turns . | . . . . . . . . . . . . Heaviest Build 111 | 14 50 51 53 70 81 76 76 90 79 92 111 Greatest Support 162 | 40 40 20 50 73 80 100 100 100 100 100 162 Greatest Overweight (x) 14 | . 4 14 2 1 1 . . 1 . 1 2 Average Overweight (x) . | . 3 3 . . . . . . . . . Largest Inventory Capacity 20 | 8 20 20 20 20 20 20 20 20 20 20 20 Average Capacity 19 | 7 19 20 20 20 20 20 20 20 20 20 19 Most Carried 20 | 1 4 6 20 18 20 19 20 20 20 20 20 Average Carried 13 | . 2 4 10 11 16 18 19 19 19 18 18 Final Capacity 20 | 8 20 20 20 20 20 20 20 20 20 20 5 Final Carried 20 | 1 3 6 12 15 20 19 19 20 20 15 5 Class Distribution -------------------- 36% | Mutant 27% | Scavenger-Gunner 23% | Scavenger-Skirmisher 4% | Derelict-Mutant 3% | Derelict-Gunner 3% | Derelict-Skirmisher Dominant Class ---------------- Mutant | -10/Materials Mutant | -10/Subcaves Mutant | -8/Scraptown Derelict-Gunner | -6/Factory Scavenger-Skirmisher | -5/Factory Scavenger-Skirmisher | -4/Factory Scavenger-Skirmisher | -4/Upper Caves Scavenger-Gunner | -4/Upper Caves Scavenger-Gunner | -4/Zhirov Scavenger-Gunner | -3/Proximity Caves Scavenger-Gunner | -3/Research Resources | -11 -10 -10 -8 -6 -5 -4 -4 -4 -4 -3 -3 ----------- Run | Yrd Mat Sub Scr Fac Fac Fac Upp Upp Zhi Pro Res Matter Collected 3440 | 306 125 104 173 362 450 . 443 182 . 251 1044 Remotely . | . . . . . . . . . . . . Salvage Created 4366 | 134 332 99 . 609 520 . 356 306 . 459 1551 Parts 218 | 12 15 4 . 23 29 . 18 13 . 23 81 Haulers Intercepted . | . . . . . . . . . . . . Recyclers Shooed 3 | . . . . . . . . . . . 3 Parts Field Recycled . | . . . . . . . . . . . . Retrieved Matter . | . . . . . . . . . . . . Parts Self-Destructed 41 | . . 8 . . . . 20 5 . 8 . Prevented 23 | . . . . . . . 1 8 . 14 . Parts Restored . | . . . . . . . . . . . . Kills | -11 -10 -10 -8 -6 -5 -4 -4 -4 -4 -3 -3 ------- Run | Yrd Mat Sub Scr Fac Fac Fac Upp Upp Zhi Pro Res Combat Hostiles Destroyed 70 | . 9 3 . 11 8 . 8 4 . 6 21 Guns 45 | . 9 1 . 6 6 . 8 1 . 3 11 Cannons 14 | . . . . 5 1 . . . . . 8 AOE 7 | . . 2 . . . . . 2 . 3 . Classes Destroyed 12 | 2 3 1 . 2 1 . 1 . . . 2 Worker 3 | . 2 . . . . . . . . . 1 Builder 2 | . . . . . . . . . . . 2 Tunneler 5 | 3 . . . . . . . . . . 2 Recycler 4 | 1 1 . . 1 . . . . . . 1 Watcher 1 | . . . . . . . . . . . 1 Swarmer 12 | . 6 . . . . . 5 . . 1 . Grunt 25 | . 3 . . 8 . . 2 3 . 4 5 Duelist 3 | . . . . . . . 1 . . . 2 Sentry 6 | . . . . 1 1 . . 1 . 1 2 Hunter 11 | . . . . . 7 . . . . . 4 Programmer 10 | . . . . 2 . . . . . . 8 Subdweller 3 | . . 3 . . . . . . . . . Best Kill Streak 7 | 2 3 2 . 4 2 . 5 4 . 6 7 Combat Bots Only 6 | . 3 2 . 4 2 . 5 4 . 6 5 Max Kills in Single Turn 2 | 1 1 1 . 1 1 . 2 1 . 2 2 Gunslinging 1 | . . . . . . . 1 . . . . Exploded 1 | . . 1 . . . . . 1 . 1 . Melee . | . . . . . . . . . . . . Uniques/NPCs Destroyed . | . . . . . . . . . . . . Combat | -11 -10 -10 -8 -6 -5 -4 -4 -4 -4 -3 -3 -------- Run | Yrd Mat Sub Scr Fac Fac Fac Upp Upp Zhi Pro Res Hostile Shots Fired 793 | . 70 23 . 103 104 . 56 36 . 99 302 Missed 244 | . 19 10 . 32 25 . 20 13 . 30 95 Hits 549 | . 51 13 . 71 79 . 36 23 . 69 207 Melee 30 | . . . . . . . . . . . 30 Projectile 519 | . 51 13 . 71 79 . 36 23 . 69 177 AOE 1 | . . . . 1 . . . . . . . Critical Strikes 25 | . . . . 2 1 . . 1 . 2 19 Actively Blocked 1 | . . . . . . . . . . . 1 Part Disruptions 2 | . . . . . . . . . . . 2 Actively Blocked 1 | . . . . . . . . . . . 1 Damage Taken 11153 | . 546 270 . 1495 1376 . 597 482 . 1293 5094 Core 2140 | . 70 42 . 177 264 . 66 40 . 174 1307 Absorbed by Shields 44 | . . . . . . . . . . 44 . Redirected to Shielding 140 | . . . . . . . . . . 59 81 Regen/Repaired (Parts) 161 | . . . . 161 . . . . . . . Core Remaining (%) 75 | 100 . . 55 79 73 . . . . 71 . Volleys Fired 221 | 12 44 12 . 40 32 . 13 7 . 7 54 Largest 4 | 2 2 2 . 3 3 . 4 4 . 4 4 Hottest 242 | 60 60 40 . 177 228 . 112 130 . 135 242 Shots Fired 632 | 24 89 21 . 109 96 . 52 27 . 21 193 Gun 486 | 24 89 17 . 71 84 . 52 24 . 16 109 Cannon 131 | . . . . 38 12 . . . . . 81 Launcher 15 | . . 4 . . . . . 3 . 5 3 Special . | . . . . . . . . . . . . Kinetic 424 | 12 47 17 . 64 46 . 52 24 . 16 146 Thermal 193 | 12 42 . . 45 50 . . . . . 44 Explosive 4 | . . 4 . . . . . . . . . Electromagnetic 11 | . . . . . . . . 3 . 5 3 Robot Hit Streak 15 | 4 8 8 . 15 8 . 9 12 . 9 15 Robot Miss Streak 5 | 1 5 2 . 4 3 . 2 1 . 1 4 Penetration Max 2 | . . . . . . . 1 1 . 1 2 Secondary Targets 8 | . 1 . . . 1 . 5 . . . 1 Max Gunslinging Chain 2 | . 1 . . . 1 . 2 . . . 1 Shots Hit Robots 396 | 16 50 15 . 73 69 . 31 22 . 13 107 Core Hits 196 | 5 19 6 . 39 25 . 18 13 . 12 59 Critical Kills 10 | . . . . . . . 1 . . 1 8 Critical Parts Destroyed 8 | . . . . . 1 . 1 . . . 6 Critical Strikes 27 | . . . . 4 2 . 2 . . 1 18 Burn 3 | . . . . 1 1 . . . . . 1 Meltdown 2 | . . . . . . . . . . . 2 Destroy 16 | . . . . . 1 . 2 . . 1 12 Blast 6 | . . . . 3 . . . . . . 3 Melee Attacks 3 | . . . . . . . . . . . 3 Impact . | . . . . . . . . . . . . Slashing . | . . . . . . . . . . . . Piercing 3 | . . . . . . . . . . . 3 Sneak Attacks . | . . . . . . . . . . . . Combat Hostiles . | . . . . . . . . . . . . Follow-up Attacks . | . . . . . . . . . . . . Damage Inflicted 9957 | 190 613 395 . 1624 1229 . 767 829 . 641 3669 Guns 6472 | 190 613 133 . 1034 999 . 767 480 . 271 1985 Cannons 2385 | . . . . 564 225 . . . . . 1596 Explosions 1046 | . . 262 . . . . . 349 . 370 65 Melee . | . . . . . . . . . . . . Ramming 54 | . . . . 26 5 . . . . . 23 Kinetic 6107 | 100 290 133 . 1022 465 . 767 480 . 271 2579 Thermal 2750 | 90 323 . . 576 759 . . . . . 1002 Explosive 262 | . . 262 . . . . . . . . . Electromagnetic 784 | . . . . . . . . 349 . 370 65 Impact . | . . . . . . . . . . . . Slashing . | . . . . . . . . . . . . Piercing . | . . . . . . . . . . . . Highest Corruption 24 | . 1 1 . 5 . . . 5 5 15 24 Average Corruption 3 | . 1 1 . 3 . . . 5 5 5 4 Corruption Purged . | . . . . . . . . . . . . Corruption Blocked . | . . . . . . . . . . . . Effects 82 | . 5 5 . 18 . . . 5 4 16 29 Message Errors 14 | . 1 . . 2 . . . 1 1 6 3 Matter Fused 15 | . 1 1 . 2 . . . . 1 4 6 Heat Flow Errors 10 | . . . . 3 . . . . 1 3 3 Energy Discharges 9 | . . . . 1 . . . . 1 1 6 Parts Rejected 1 | . . . . . . . . . . . 1 Data Loss (minor) 14 | . 1 1 . 5 . . . 1 . 1 5 Data Loss (major) 6 | . 1 2 . . . . . 2 . . 1 Misfires 6 | . 1 1 . 2 . . . . . . 2 Alerts 2 | . . . . 1 . . . 1 . . . Weapon Failures 5 | . . . . 2 . . . . . 1 2 Overload Shots . | . . . . . . . . . . . . Overflow Damage 10 | . . . . . . . . . . . 10 Projectiles 10 | . . . . . . . . . . . 10 Explosions . | . . . . . . . . . . . . Melee . | . . . . . . . . . . . . Knockbacks 16 | . . . . 2 . . . . . . 14 Impact . | . . . . . . . . . . . . Kinetic 14 | . . . . 2 . . . . . . 12 Secondary 2 | . . . . . . . . . . . 2 Self-Inflicted Damage . | . . . . . . . . . . . . Shots . | . . . . . . . . . . . . Rammed 2 | . 1 . . 1 . . . . . . . Targets Rammed 6 | . 1 . . 1 2 . . . . . 2 Kicked 4 | . . . . . 2 . . . . . 2 Crushed . | . . . . . . . . . . . . Highest Temperature 452 | . 162 . . 251 452 . 111 128 131 215 352 Average Temperature 103 | . 78 . . 102 171 . 46 69 71 70 104 Received Heat Transfer 1288 | . 201 78 . 426 63 . 69 96 . 280 75 Effects 3 | . . . . 1 1 . . . . . 1 Shutdowns 2 | . . . . . 1 . . . . . 1 Energy Bleed 1 | . . . . 1 . . . . . . . Siege Activations . | . . . . . . . . . . . . Martial Activations . | . . . . . . . . . . . . Shielding Activations . | . . . . . . . . . . . . Robots Disrupted . | . . . . . . . . . . . . Combat Hostiles . | . . . . . . . . . . . . Robots Corrupted 1 | . . . . . . . . 1 . . . Combat Hostiles 1 | . . . . . . . . 1 . . . Parts Fried 2 | . . . . . . . . 1 . 1 . Impact Corruptions 1 | . . . . . . . . . . . 1 Robots Melted 3 | . . . . . 1 . . . . . 2 Combat Hostiles 3 | . . . . . 1 . . . . . 2 Parts Melted 14 | . 1 . . . 6 . . . . . 7 Heat Transferred 5145 | 200 725 . . 1110 1460 . . . . . 1650 Parts Sabotaged . | . . . . . . . . . . . . Parts Stolen . | . . . . . . . . . . . . Parts Stripped . | . . . . . . . . . . . . Power Chain Reactions . | . . . . . . . . . . . . Alert | -11 -10 -10 -8 -6 -5 -4 -4 -4 -4 -3 -3 ------- Run | Yrd Mat Sub Scr Fac Fac Fac Upp Upp Zhi Pro Res Maximum Alert Level 1 | . . . . . . . . . . . 1 Low Security (%) 97 | 100 100 . . 100 100 100 . . . . 92 Level 1 2 | . . . . . . . . . . . 7 Level 2 . | . . . . . . . . . . . . Level 3 . | . . . . . . . . . . . . Level 4 . | . . . . . . . . . . . . Level 5 . | . . . . . . . . . . . . High Security . | . . . . . . . . . . . . Max Security . | . . . . . . . . . . . . Peak Influence 242 | 5 61 . . 116 65 6 . . . . 242 Initial 47 | . . . . . . 6 . . . . 47 Average 37 | 1 12 . . 45 19 . . . . . 75 Influence Increases 2053 | 20 236 . . 339 265 6 195 105 . 135 752 Destroy 0b10 Robot/C 1340 | . 180 . . 220 160 . 160 80 . 120 420 Destroy 0b10 Robot/NC 75 | 20 15 . . 5 . . . . . . 35 Destroy Leader 272 | . 40 . . 60 50 . 20 10 . . 92 Successful Hack 82 | . . . . 19 13 6 . . . . 44 Disable Machine 105 | . . . . 15 15 . . . . . 75 Destroy Structure 74 | . 1 . . 5 12 . . . . . 56 Lose Combat Pursuer 105 | . . . . 15 15 . 15 15 . 15 30 Influence Decreases 1952 | 20 236 . . 339 251 20 130 170 . 65 721 Entered New Map 44 | . . . . . . 8 . 13 . . 23 Time Decay 1439 | 20 223 . . 269 220 12 100 137 . 40 418 Lost Part 469 | . 13 . . 70 31 . 30 20 . 25 280 Squads Dispatched 18 | . 2 . . 6 4 . . . . 1 5 Investigation 6 | . . . . 1 3 . . . . . 2 Extermination 6 | . . . . 2 1 . . . . . 3 Reinforcement 2 | . 2 . . . . . . . . . . Assault 1 | . . . . . . . . . . 1 . Garrison 3 | . . . . 3 . . . . . . . Intercept . | . . . . . . . . . . . . Searches Triggered . | . . . . . . . . . . . . Construction Impeded . | . . . . . . . . . . . . Haulers Reinforced . | . . . . . . . . . . . . Active Scanning Responses . | . . . . . . . . . . . . Cargo Convoy Interrupts . | . . . . . . . . . . . . Stealth | -11 -10 -10 -8 -6 -5 -4 -4 -4 -4 -3 -3 --------- Run | Yrd Mat Sub Scr Fac Fac Fac Upp Upp Zhi Pro Res Distress Signals 3 | . . . . 1 . . . . . . 2 Communications Jammed 9 | . . . . . . . . . . . 9 Distress Signals 9 | . . . . . . . . . . . 9 Times Spotted 105 | . 19 3 . 15 9 . 10 6 . 11 32 Peak Tracking Total 9 | . 4 2 . 5 2 . 5 5 . 7 9 Tactical Retreats 6 | . . . . 1 1 . 1 1 . 1 1 Traps | -11 -10 -10 -8 -6 -5 -4 -4 -4 -4 -3 -3 ------- Run | Yrd Mat Sub Scr Fac Fac Fac Upp Upp Zhi Pro Res Traps Triggered 5 | . 1 . . 3 1 . . . . . . Indirectly . | . . . . . . . . . . . . Trap Hack Attempts . | . . . . . . . . . . . . Triggered . | . . . . . . . . . . . . Disarmed . | . . . . . . . . . . . . Reprogrammed . | . . . . . . . . . . . . Reused . | . . . . . . . . . . . . Traps Extracted . | . . . . . . . . . . . . Installed . | . . . . . . . . . . . . Triggered . | . . . . . . . . . . . . Machines | -11 -10 -10 -8 -6 -5 -4 -4 -4 -4 -3 -3 ---------- Run | Yrd Mat Sub Scr Fac Fac Fac Upp Upp Zhi Pro Res Machines Disabled 8 | . . . . 1 1 . . . . 1 5 Max in Single Turn 1 | . . . . 1 1 . . . . 1 1 Garrison Access 1 | . . . . . . . . . . . 1 Machines Repaired . | . . . . . . . . . . . . Machines Dismantled . | . . . . . . . . . . . . Machines Sabotaged . | . . . . . . . . . . . . Overloaded Fab Kills . | . . . . . . . . . . . . Hacking | -11 -10 -10 -8 -6 -5 -4 -4 -4 -4 -3 -3 --------- Run | Yrd Mat Sub Scr Fac Fac Fac Upp Upp Zhi Pro Res Machines Accessed 41 | . 5 . 7 4 6 1 1 . 9 . 8 Terminals 13 | . 3 . . 2 3 1 . . . . 4 Fabricators 1 | . . . . . . . . . . . 1 Repair Stations 1 | . . . . 1 . . . . . . . Recycling Units 7 | . 2 . . 1 3 . . . . . 1 Scanalyzers 1 | . . . . . . . . . . . 1 Garrison Access 1 | . . . . . . . . . . . 1 Total Hacks 150 | . 11 . 40 7 11 6 1 . 48 . 26 Successful 117 | . 4 . 40 5 6 2 1 . 48 . 11 Failed 33 | . 7 . . 2 5 4 . . . . 15 Catastrophic 5 | . . . . 2 1 . . . . . 2 Database Lockouts . | . . . . . . . . . . . . Manual 48 | . 9 . . 5 11 6 . . . . 17 Terminals 42 | . 7 . . 4 8 6 . . . . 17 Fabricators 2 | . . . . . . . . . . . 2 Repair Stations 2 | . . . . 2 . . . . . . . Recycling Units 11 | . 4 . . 1 3 . . . . . 3 Scanalyzers 3 | . . . . . . . . . . . 3 Garrison Access 1 | . . . . . . . . . . . 1 Terminal Hacks 95 | . . . 40 . 1 1 1 . 48 . 4 Record 75 | . . . 39 . . . . . 36 . . Part Schematic 4 | . . . . . . . . . 4 . . Robot Analysis 4 | . . . . . . . . . 4 . . Prototype ID Bank 4 | . . . . . . . . . 4 . . Open Door 1 | . . . . . . . 1 . . . . Branch Access Points 2 | . . . . . 1 . . . . . 1 Terminal Index 2 | . . . . . . 1 . . . . 1 Zone Layout 2 | . . . . . . . . . . . 2 Proto ID Catalog 1 | . . . 1 . . . . . . . . Fabricator Hacks 1 | . . . . . . . . . . . 1 Build 1 | . . . . . . . . . . . 1 Repair Station Hacks 2 | . . . . 2 . . . . . . . Scan Component 1 | . . . . 1 . . . . . . . Repair 1 | . . . . 1 . . . . . . . Recycling Unit Hacks 2 | . 2 . . . . . . . . . . Report Inventory 1 | . 1 . . . . . . . . . . Retrieve Components 1 | . 1 . . . . . . . . . . Scanalyzer 2 | . . . . . . . . . . . 2 Retrieve Study 2 | . . . . . . . . . . . 2 Garrison Access Hacks 1 | . . . . . . . . . . . 1 Seal Access 1 | . . . . . . . . . . . 1 Unauthorized Hacks 14 | . 2 . . 3 5 1 . . . . 3 Terminals 9 | . 2 . . 2 2 1 . . . . 2 Botnet 9 | . 2 . . 2 2 1 . . . . 2 Fabricators . | . . . . . . . . . . . . Repair Stations . | . . . . . . . . . . . . Recycling Units 5 | . . . . 1 3 . . . . . 1 Fedlink 5 | . . . . 1 3 . . . . . 1 Scanalyzers . | . . . . . . . . . . . . Garrison Access . | . . . . . . . . . . . . Data Cores Recovered . | . . . . . . . . . . . . Used . | . . . . . . . . . . . . Hacking Detections 19 | . 5 . . 3 3 1 . . . . 7 Full Trace Events 1 | . . . . . . . . . . . 1 Feedback Events . | . . . . . . . . . . . . Feedback Blocked . | . . . . . . . . . . . . Robot Schematics Acquired . | . . . . . . . . . . . . Robots Built 2 | . . . . . . . . . . . 2 Authchips . | . . . . . . . . . . . . Time 40 | . . . . . . . . . . . 40 Total Robot Build Rating 2 | . . . . . . . . . . . 2 Part Schematics Acquired 4 | . . . . . . . . . 4 . . Parts Built . | . . . . . . . . . . . . Authchips . | . . . . . . . . . . . . Time . | . . . . . . . . . . . . Total Part Build Rating . | . . . . . . . . . . . . Part Studies Acquired 2 | . . . . . . . . . . . 2 Parts Repaired 1 | . . . . 1 . . . . . . . Time 22 | . . . . 22 . . . . . . . Parts Recycled . | . . . . . . . . . . . . Recycled Matter . | . . . . . . . . . . . . Retrieved Matter . | . . . . . . . . . . . . Retrieved Components 10 | . 10 . . . . . . . . . . Parts Scanalyzed . | . . . . . . . . . . . . Part Schematics Acquired . | . . . . . . . . . . . . Parts Damaged . | . . . . . . . . . . . . Bothacking | -11 -10 -10 -8 -6 -5 -4 -4 -4 -4 -3 -3 ------------ Run | Yrd Mat Sub Scr Fac Fac Fac Upp Upp Zhi Pro Res Used RIF Installer . | . . . . . . . . . . . . Robots Hacked . | . . . . . . . . . . . . Non-combat . | . . . . . . . . . . . . Combat . | . . . . . . . . . . . . Robot Hacks Applied . | . . . . . . . . . . . . Relay Couplers Released 4 | . . . . 4 . . . . . . . Programmers 4 | . . . . 4 . . . . . . . Fabnet Peak Effective % . | . . . . . . . . . . . . Robots Rewired . | . . . . . . . . . . . . Allies Hacked 1 | . . . . . . . . . . . 1 Hacks Repelled . | . . . . . . . . . . . . Allies | -11 -10 -10 -8 -6 -5 -4 -4 -4 -4 -3 -3 -------- Run | Yrd Mat Sub Scr Fac Fac Fac Upp Upp Zhi Pro Res Total Allies 2 | . . . . . . . . . . . 2 Largest Group 2 | . . . . . . . . . . . 2 Highest-Rated Group 20 | . . . . . . . . . . . 20 Highest-Rated Ally 10 | . . . . . . . . . . . 10 Initial UFD Resources 54 | . . . . 22 34 52 52 52 52 54 54 Total Orders . | . . . . . . . . . . . . Ally Attacks . | . . . . . . . . . . . . Total Damage . | . . . . . . . . . . . . Kills . | . . . . . . . . . . . . Allies Corrupted 1 | . . . . . . . . . . . 1 Allies Melted . | . . . . . . . . . . . . Intel | -11 -10 -10 -8 -6 -5 -4 -4 -4 -4 -3 -3 ------- Run | Yrd Mat Sub Scr Fac Fac Fac Upp Upp Zhi Pro Res Active Infowar (turns) 6863 | 32 435 230 1087 778 697 248 994 568 178 464 1152 Optics 1148 | . . 61 1087 . . . . . . . . Sensors 3418 | . . . . 172 624 248 994 228 . . 1152 Terrain 4310 | . 248 169 . 778 669 244 992 568 178 464 . Seismic 219 | 32 187 . . . . . . . . . . Jamming 853 | . . . . . . . . . . . 853 Robot Analysis Total 4 | . . . . . . . . . 4 . . Derelict Logs Recovered 3 | . . . . . . . 1 2 . . . Drone Launches . | . . . . . . . . . . . . Drone Recoveries . | . . . . . . . . . . . . Exploration | -11 -10 -10 -8 -6 -5 -4 -4 -4 -4 -3 -3 ------------- Run | Yrd Mat Sub Scr Fac Fac Fac Upp Upp Zhi Pro Res Turns Passed 9028 | 167 1079 405 1880 779 697 248 994 568 182 687 1342 Spaces Moved 5340 | 77 365 172 1393 365 295 89 766 403 147 498 770 Core 39 | 2 . 7 . . . . . . . . 30 Treads 993 | 75 106 28 383 365 36 . . . . . . Legs 2902 | . . . . . 259 89 766 403 147 498 740 Wheels 1406 | . 259 137 1010 . . . . . . . . Hover . | . . . . . . . . . . . . Flight . | . . . . . . . . . . . . Fastest Speed 50 | 50 140 130 117 150 120 120 120 120 120 120 50 Average Speed 134 | 157 171 191 132 152 173 120 120 121 120 120 114 Slowest Speed 750 | 160 320 750 232 225 240 120 120 190 120 190 250 Overloaded Moves . | . . . . . . . . . . . . Propulsion Burnouts . | . . . . . . . . . . . . Robots Hopped . | . . . . . . . . . . . . Potential Cave-ins . | . . . . . . . . . . . . Cave-ins Triggered 1 | . . . . . . . . . . . 1 Teleports 1 | . . . . . . . . . . 1 . Exploration Rate (%) 41 | 4 60 22 92 11 8 2 84 63 62 72 22 Regions Visited 11 Branch Regions 6 Pre-discovered Areas 6 | . . . . . 1 . 1 1 3 . . Known Exits Taken 5 | . . . . 1 1 1 1 . . 1 . Unknown Exits Taken 6 | 1 1 1 1 . . . . 1 1 . . Scrap Searched 17 | . . . 7 . . . 4 3 . 3 . Spaces Dug 1 | . . . . . . . . . . . 1 Terrain Destroyed 40 | . . 3 . 2 7 . . . . 3 25 Melee 1 | . . . . . . . . . . . 1 Projectile 36 | . . . . 2 7 . . . . 3 24 AOE 3 | . . 3 . . . . . . . . . Terrain Rammed . | . . . . . . . . . . . . Walls Destroyed . | . . . . . . . . . . . . Machines Disabled . | . . . . . . . . . . . . Actions | -11 -10 -10 -8 -6 -5 -4 -4 -4 -4 -3 -3 --------- Run | Yrd Mat Sub Scr Fac Fac Fac Upp Upp Zhi Pro Res Total 6737 | 96 728 228 1430 502 410 230 812 465 153 568 1115 Wait 786 | . 305 33 . 41 25 134 10 34 . 39 165 Move 5329 | 76 364 171 1392 364 294 88 765 402 146 497 770 Hop . | . . . . . . . . . . . . Pick Up 97 | 1 2 5 11 14 13 1 9 7 2 6 26 Fast Attach 63 | 7 2 1 6 11 9 1 2 2 2 1 19 Attach 87 | . 3 4 2 15 10 4 4 7 . 13 25 Detach 52 | . 2 2 8 9 7 2 1 4 . 3 14 Swap 19 | . 3 . . 1 7 . . . . 1 7 Drop 74 | . 2 . 11 6 11 . 8 2 3 1 30 Fire 221 | 12 44 12 . 40 32 . 13 7 . 7 54 Melee 3 | . . . . . . . . . . . 3 Ram . | . . . . . . . . . . . . Kick 4 | . . . . . 2 . . . . . 2 Crush 2 | . 1 . . 1 . . . . . . . Escape Stasis . | . . . . . . . . . . . . Rewire . | . . . . . . . . . . . . Trap . | . . . . . . . . . . . . Miscellaneous . | . . . . . . . . . . . . Route ------- -11/Scrapyard -10/Materials (discovered 2 exits: [*Mat] / [*Sub]) -10/Subcaves (discovered 2 exits: [*Mat] / *Scr) -8/Scraptown (discovered 2 exits: *Fac x2) -6/Factory (discovered 2 exits: *Fac / [*Ext]) -5/Factory (discovered 3 exits: *Fac / Upp x2) -4/Factory (discovered 2 exits: *Res / *Upp) -4/Upper Caves -4/Upper Caves (discovered 2 exits: *Res / *Zhi) -4/Zhirov -3/Proximity Caves -3/Research (discovered 6 exits: *Res x3 / *Arm / Qua x2) History --------- Turn | Location | Event 13 | -11/Scrapyard | Discovered new exit (range 14) 168 | -11/Scrapyard | Entered Materials 309 | -10/Materials | Build established: Mutant 1123 | -10/Materials | Discovered new exit (range 4) 1240 | -10/Materials | Discovered new exit (range 6) 1247 | -10/Materials | Entered Subcaves 1248 | -10/Subcaves | Approached by a straggling Scientist 1373 | -10/Subcaves | Discovered new exit (range 7) 1405 | -10/Subcaves | Ambushed by Subdwellers from Twisted Machinery 1649 | -10/Subcaves | Scientist uncovered a shortcut to Scraptown 1652 | -10/Subcaves | Entered Scraptown 1652 | -8/Scraptown | System corruption cleaned by C-Scrubber 1897 | -8/Scraptown | Discovered new exit (range 5) 1986 | -8/Scraptown | Visited Cyclists 2011 | -8/Scraptown | Visited Red Mages 2053 | -8/Scraptown | Visited SPCMW 2080 | -8/Scraptown | Visited Spacefarers 2352 | -8/Scraptown | Visited UFD Registry 2352 | -8/Scraptown | Registered with UFD as "Slugtorch" 2372 | -8/Scraptown | Visited The Evicted 2383 | -8/Scraptown | Visited Fellowship of the Rings 2442 | -8/Scraptown | Entered Cyclist Reading Room 2552 | -8/Scraptown | Visited Chapter 10 2583 | -8/Scraptown | Visited Science Guys 2626 | -8/Scraptown | Visited Abandonware Association 2634 | -8/Scraptown | Learned abandonware demo "OVRCLOCK.EXE" 2639 | -8/Scraptown | Learned abandonware demo "HACKBUD.EXE" 2731 | -8/Scraptown | Discovered new exit (range 3) 2771 | -8/Scraptown | Visited Cartography Club 2809 | -8/Scraptown | Visited Derelict Rescue Squad 2840 | -8/Scraptown | Visited DA-N13 Charitable Foundation 2845 | -8/Scraptown | Found DCF Scrap (27 items) 3090 | -8/Scraptown | Visited Infowarlord's Domain 3102 | -8/Scraptown | Found Exp. Terrain Scan Processor 3132 | -8/Scraptown | Visited Scrapoid Research Area 3168 | -8/Scraptown | Visited Curators Association 3383 | -8/Scraptown | Met Optimus 3383 | -8/Scraptown | Accepted into 0bPrime 3532 | -8/Scraptown | Entered Factory 3532 | -6/Factory | Evolved 8 slots: Propulsion x1, Utility x6, Weapon x1 3639 | -6/Factory | Garrison activated, responded to threat 3676 | -6/Factory | Loaded intel: 8 recycling unit locations 3763 | -6/Factory | Lost 3 parts (2u1w) 3987 | -6/Factory | Repaired Med. Treads 4000 | -6/Factory | Discovered new exit (range 20) 4051 | -6/Factory | Lost 3 parts (1n2w) 4212 | -6/Factory | Discovered new exit (range 17) 4240 | -6/Factory | Identified exit to Factory 4311 | -6/Factory | Entered another Factory area 4311 | -5/Factory | Evolved 2 slots: Power x1, Propulsion x1 4361 | -5/Factory | Loaded intel: 8 recycling unit locations 4361 | -5/Factory | Learned location of Protoforge (-3) 4431 | -5/Factory | Lost 3 parts (1p1n1w) 4552 | -5/Factory | Identified exit to Upper Caves 4896 | -5/Factory | Discovered new exit (range 20) 5007 | -5/Factory | Identified exit to Factory 5008 | -5/Factory | Entered another Factory area 5008 | -4/Factory | Evolved 2 slots: Propulsion x1, Weapon x1 5053 | -4/Factory | Build established: Scavenger-Skirmisher 5187 | -4/Factory | Discovered new exit (range 7) 5247 | -4/Factory | Discovered new exit (range 13) 5254 | -4/Factory | Identified exit to Upper Caves 5256 | -4/Factory | Entered Upper Caves 5309 | -4/Upper Caves | Found DCF Scrap (13 items) 5767 | -4/Upper Caves | Encountered a Warlord checkpoint 5774 | -4/Upper Caves | Learned location of Quarantine (-3) 6247 | -4/Upper Caves | Discovered new exit (range 3) 6249 | -4/Upper Caves | Identified exit to Upper Caves 6250 | -4/Upper Caves | Entered another Upper Caves area 6271 | -4/Upper Caves | Learned 12 Research zone layouts 6276 | -4/Upper Caves | Discovered new exit (range 16) 6292 | -4/Upper Caves | Identified exit to Research 6307 | -4/Upper Caves | Attracted the attention of an 0b10 checkpoint 6509 | -4/Upper Caves | Lost 5 parts (1p3n1u) 6760 | -4/Upper Caves | Build established: Scavenger-Gunner 6805 | -4/Upper Caves | Discovered new exit (range 13) 6818 | -4/Upper Caves | Entered Zhirov 6818 | -4/Zhirov | Discovered new exit (range 3) 6840 | -4/Zhirov | Met Zhirov 6865 | -4/Zhirov | Learned location of Testing (-2) 6865 | -4/Zhirov | Learned location of Command (-1) 6889 | -4/Zhirov | Zhirov requested help retrieving the SGEMP Prototype 6910 | -4/Zhirov | Found Alien Artifact 6925 | -4/Zhirov | Found Alien Artifact 6925 | -4/Zhirov | Identified Integrated Dissipator 6925 | -4/Zhirov | Installed Integrated Dissipator, increased core heat dissipation (+20) 7000 | -4/Zhirov | Entered Proximity Caves 7381 | -3/Proximity Caves | Spotted B-86 Titan 7455 | -3/Proximity Caves | Attracted the attention of an 0b10 checkpoint 7474 | -3/Proximity Caves | Identified Transdimensional Reconstructor 7474 | -3/Proximity Caves | Warped through subspace 7505 | -3/Proximity Caves | Lost 8 parts (1p2n2u3w) 7585 | -3/Proximity Caves | Attracted the attention of an 0b10 outpost 7627 | -3/Proximity Caves | Lost 3 parts (1n2w) 7645 | -3/Proximity Caves | System corruption reached 10% 7682 | -3/Proximity Caves | Discovered exit to Research (range 6) 7687 | -3/Proximity Caves | Entered Research 7687 | -3/Research | Evolved 2 slots: Propulsion x1, Utility x1 7688 | -3/Research | Identified exit to Research 7688 | -3/Research | Identified exit to Quarantine 7812 | -3/Research | Discovered new exit (range 2) 7882 | -3/Research | Identified exit to Armory 7934 | -3/Research | Fabricated T-07 Excavator? 8117 | -3/Research | Discovered exit to Research (range 15) 8157 | -3/Research | Found Prototype Device 8157 | -3/Research | Identified Imp. Particle Accelerator 8457 | -3/Research | Loaded intel: 5 recycling unit locations 8605 | -3/Research | Lost 3 parts (2p1w) 8911 | -3/Research | Lost 3 parts (1p1n1u) 8915 | -3/Research | Crushed by falling debris 8915 | -3/Research | System corruption reached 10% 9013 | -3/Research | Core integrity fell below 50% 9022 | -3/Research | Core integrity fell below 20% 9029 | -3/Research | Destroyed by S-43 Plague with Heavy Machine Gun Last Messages --------------- 09010_ Acquired Particle Reactor. 09011_ P-80 Master resets P-80 Master, system corruption cleaned. 09011_ Particle Reactor destroyed. 09012_ Field Propulsion Drive+ severed. 09012_ Dropped Hcp. Storage Unit. 09012_ S-43 Plague destroyed. 09013_ P-80 Master resets S-43 Plague, system corruption cleaned. 09014_ Dropped Adv. Heat Sink. 09014_ Acquired Enh. Force Lance. 09016_ Acquired 65 matter. 09017_ P-80 Master resets P-80 Master, system corruption cleaned. 09020_ P-80 Master resets S-43 Plague, system corruption cleaned. 09021_ Adv. Sensor Array destroyed. 09022_ Acquired 40 matter. 09022_ Adv. Transmission Jammer destroyed. 09023_ System corrupted: Heat flow error (+138). Map ----- +----------------------------------------------------+ | ??????????????????????? ####+###???????# ?? | | ??????????????????????? # #???????# ?? | | ??????????????????????? # #???????# ?? | | ???????????????????????##### #???????# ?? | | ??????????????????????? #??# #???????######?? | | ??????????????????????? #??# #????????????#?? | | ??????????????????????? #??# #?????????####?? | | ??????????? ????????? #??########?????????# ?? | | ??????????# ????????? #??????# #??????????# ?? | | ??????????# ????????? #?##########????????# ?? | | ??????????# #???????? #?# #????????# ?? | | ??????????# #???????? #?# = #????????# ?? | | ??????????# #????????##?# !!! #????????# ?? | | ??????????+ #???????????# !!! #????????####?? | | ??????????# #???????????# !! #??##########?? | | ???"?"????#% #?????????????? ???????????????? | | ???"Y"????# #?????????????? ???????????????? | | ???"""????# #??????????????? ????????????????? | | ??????????# #??????????????? ????????????????? | | ??????????# #????????????####+####?????????????? | | ?########## ############## #???#######?#+# | | ?# = # %p ! ##### #?# # | | ?# # % ### # | | ?# """" # ps | | ?# """ # p s ! ! ###+# | | ?# # ss @ ! ##### ## | | ?# # ############## #???######## | | ?# #????????????#########??????????# [ | | ?# !#==/#???????????????????????????????# | | ?# ! =!%##??????????????????????????????# | | ?##########![!%##?????????????????????????????# | | ?????????#T]=!!##?????????????????????????????# | | ?????????""""""""?????????????????????????????#### | | ?????????????????????????????????????????????????? | | ?????????????????????????????????????????????????? | | ?????????????????????????????????????????????????? | | ?????????????????????????????????????????????????? | | ????????????>????????????????????????????????????? | | ?????????????????????????????????????????????????? | | ?????????????????????????????????????????????????? | | ?????????????????????????????????????????????????? | | ?????????????????????????????????????????????????? | | ?????????????????????????????????????????????????? | | ?????????????????????????????????????????????????? | | ?????????????????????????????????????????????????? | | ?????????????????????????????????????????????????? | | ????????????"?"??????????????????????????????????? | | ????????????"Y"??????????????????????????????????? | | ????????????"""??????????????????????????????????? | | ?????????????????????????????????????????????????? | +----------------------------------------------------+ Best States ------------- Heat Dissipation 85 Energy Generation 39 Energy Capacity 520 Matter Stores 300 Matter Capacity 300 Sight Range 21 Robot Scan Range 16 Terrain Scan Range 20 Terrain Scan Density 1010 Jamming Range 16 Armor Coverage 600 Resistance: TH 20 Propulsion Shielding 90 Phase Shifting 10 Evasion (%) 70 Targeting Accuracy 14 Melee Accuracy 8 Target Analysis 12 Core Analysis 6 Armor Integrity Analysis 40 Recoil Reduction 6 Kinecelleration 30 Offensive Hacking 12 Defensive Hacking 14 Item Schematics ----------------- Assault Drone Bay | -4/Zhirov | Free Exp. Heat Sink | -4/Zhirov | Free Exp. Optical Array | -4/Zhirov | Free Imp. Arc Thrower | -4/Zhirov | Free Robot Schematics ------------------ None Fabricated ------------ T-07 Excavator | x2 | -3/Research | Preloaded Repaired ---------- Med. Treads | 12% | -6/Factory Studied --------- Field Propulsion Drive | -3/Research | Hacked Q-thruster | -3/Research | Hacked Alien Tech Used ----------------- Integrated Dissipator Transdimensional Reconstructor Achievements -------------- None Challenges ------------ None Game ------ Seed PortableDeliveryNetwork Manual? 0 Play Time 01:39:03 Cumulative 47.6 hours Start 2026.07.13 @ 12:22:06 End 2026.07.13 @ 14:45:35 Sessions 5 Manual Loads 0 Difficulty Rogue Special Mode None Game No. 53 Rogue 53 Adventurer 0 Explorer 0 Win Type - Total 1 Types 1/0/0/0/0/0/0/0/0/0 Lore% 43 Gallery% 36 Achievement% 34 Wizard Run 0 Options --------- Layout 1 ASCII 0 Keyboard 1 Movement Numpad Keybinds 1 Fullscreen 2 Font 24/Smallcaps Map View 50x40 Zoom Use 0% Tactical HUD 1 Map Filters NONE Filters NONE Steam 1 RUN: 53c191e9-36f9-411d-9563-49ee4945bbfc